[Event "European Online Club-ch-D 2021"]
[Site "Online"]
[Date "2021.03.27"]
[Round "9.12"]
[White "Gavrilescu, David"]
[Black "Muminova, Nafisa"]
[Result "0-1"]
[ECO "C11"]
[WhiteElo "2476"]
[BlackElo "2274"]
[Annotator "ChessBase"]
[PlyCount "56"]
[EventDate "2021.03.27"]
[EventType "team-tourn"]
[EventCountry "NET"]
[SourceTitle "playchess.com"]
[Source "ChessBase"]
[SourceQuality "1"]
[TimeControl "900+5"]

1. e4 {[%emt 0:00:00]} e6 {[%emt 0:00:06]} 2. d4 {[%emt 0:00:02]} d5 {[%emt 0:00:02]} 3. Nc3 {[%emt 0:00:01]} Nf6 {[%emt 0:00:03]} 4. e5 {[%emt 0:00:02]} Nfd7 {[%emt 0:00:01]} 5. Nce2 {[%emt 0:00:01]} c5 {[%emt 0:00:03]} 6. c3 {[%emt 0:00:01]} Nc6 {[%emt 0:00:04]} 7. Nf3 {[%emt 0:00:01]} b5 {[%emt 0:00:02]} 8. Nf4 {[%emt 0:00:06]} Qa5 {[%emt 0:00:20]} 9. a3 {[%emt 0:04:34]} cxd4 {[%emt 0:00:36]} 10. b4 {[%emt 0:00:03]} Qb6 {[%emt 0:00:47]} 11. cxd4 {[%emt 0:00:17]} a5 {[%emt 0:00:04]} 12. bxa5 {[%emt 0:00:15]} Rxa5 {[%emt 0:00:07]} 13. Rb1 {[%emt 0:00:22]} Bxa3 {[%emt 0:00:34]} 14. Bd2 {[%emt 0:00:42]} b4 {[%emt 0:00:14]} 15. Nh5 {[%emt 0:00:45]} O-O {[%emt 0:01:05]} 16. Rb3 {[%emt 0:05:35]} Ba6 {[%emt 0:01:13]} 17. h4 {[%emt 0:01:09]} Rc8 {[%emt 0:00:10]} 18. Bxa6 {[%emt 0:01:21]} Qxa6 {[%emt 0:00:23]} 19. Rh3 {[%emt 0:00:20]} Qc4 {[%emt 0:01:52]} 20. Nxg7 {[%emt 0:00:50]} Kxg7 {[%emt 0:00:16]} 21. Rg3+ {[%emt 0:00:01]} Kf8 {[%emt 0:00:02]} 22. Bh6+ {[%emt 0:00:02]} Ke7 {[%emt 0:00:01]} 23. Qd2 {[%emt 0:00:08]} Nf8 {[%emt 0:02:57]} 24. Qg5+ {[%emt 0:00:08]} Kd7 {[%emt 0:00:07]} 25. Rb1 {[%emt 0:00:14]} Nxd4 {[%emt 0:01:38]} 26. Nxd4 {[%emt 0:00:00]} Qxd4 {[%emt 0:00:02]} 27. Kf1 {[%emt 0:00:01]} Rac5 {[%emt 0:00:30]} 28. Qf6 {[%emt 0:00:03]} Rc1+ {[%emt 0:00:05]} 0-1

[Event "European Online Club-ch-D 2021"]
[Site "Online"]
[Date "2021.03.27"]
[Round "9.13"]
[White "Reimanis, Ritvars"]
[Black "Lagarde, Maxime"]
[Result "0-1"]
[ECO "D27"]
[WhiteElo "2412"]
[BlackElo "2640"]
[Annotator "ChessBase"]
[PlyCount "68"]
[EventDate "2021.03.27"]
[EventType "team-tourn"]
[EventCountry "NET"]
[SourceTitle "playchess.com"]
[Source "ChessBase"]
[SourceQuality "1"]
[TimeControl "900+5"]

1. d4 {[%emt 0:00:00]} d5 {[%emt 0:00:07]} 2. c4 {[%emt 0:00:03]} e6 {[%emt 0:00:02]} 3. Nf3 {[%emt 0:00:02]} Nf6 {[%emt 0:00:02]} 4. Nc3 {[%emt 0:00:04]} dxc4 {[%emt 0:00:02]} 5. e3 {[%emt 0:00:05]} a6 {[%emt 0:00:12]} 6. Bxc4 {[%emt 0:00:01]} c5 {[%emt 0:00:03]} 7. O-O {[%emt 0:00:03]} b5 {[%emt 0:00:07]} 8. Bb3 {[%emt 0:00:03]} Bb7 {[%emt 0:00:09]} 9. Qe2 {[%emt 0:00:13]} Be7 {[%emt 0:00:16]} 10. Rd1 {[%emt 0:00:05]} O-O {[%emt 0:00:11]} 11. dxc5 {[%emt 0:00:11]} Qc7 {[%emt 0:00:05]} 12. e4 {[%emt 0:00:03]} Bxc5 {[%emt 0:00:05]} 13. h3 {[%emt 0:00:13]} Nbd7 {[%emt 0:00:28]} 14. a3 {[%emt 0:00:28]} Rac8 {[%emt 0:00:38]} 15. Bg5 {[%emt 0:00:06]} h6 {[%emt 0:00:06]} 16. Bd2 {[%emt 0:00:42]} Qb6 {[%emt 0:02:40]} 17. Be1 {[%emt 0:03:02]} Rc7 {[%emt 0:00:13]} 18. Bc2 {[%emt 0:00:50]} Rfc8 {[%emt 0:00:26]} 19. Bb1 {[%emt 0:01:06]} Nf8 {[%emt 0:00:45]} 20. Ne5 {[%emt 0:00:32]} Bd4 {[%emt 0:00:16]} 21. Nf3 {[%emt 0:00:15]} e5 {[%emt 0:00:37]} 22. Nxd4 {[%emt 0:00:48]} exd4 {[%emt 0:00:00]} 23. Nd5 {[%emt 0:00:01]} Nxd5 {[%emt 0:00:20]} 24. exd5 {[%emt 0:00:02]} Bxd5 {[%emt 0:00:00]} 25. Bb4 {[%emt 0:01:43]} Ne6 {[%emt 0:00:59]} 26. Qd3 {[%emt 0:00:23]} g6 {[%emt 0:00:04]} 27. Qd2 {[%emt 0:00:04]} Qc6 {[%emt 0:00:07]} 28. Qxh6 {[%emt 0:00:14]} Bxg2 {[%emt 0:00:08]} 29. Ba5 {[%emt 0:03:11]} Bh1 {[%emt 0:00:11]} 30. Kf1 {[%emt 0:00:49]} Qg2+ {[%emt 0:00:57]} 31. Ke1 {[%emt 0:00:55]} Qg1+ {[%emt 0:00:02]} 32. Ke2 {[%emt 0:00:11]} Bf3+ {[%emt 0:00:08]} 33. Kxf3 {[%emt 0:00:01]} Qxd1+ {[%emt 0:00:01]} 34. Kg2 {[%emt 0:00:01]} Rc1 {[%emt 0:00:03]} 0-1

[Event "European Online Club-ch-D 2021"]
[Site "Online"]
[Date "2021.03.27"]
[Round "9.14"]
[White "Maurizzi, Marc Andria"]
[Black "Kvetny, Mark"]
[Result "1-0"]
[ECO "B22"]
[WhiteElo "2461"]
[BlackElo "2416"]
[Annotator "ChessBase"]
[PlyCount "81"]
[EventDate "2021.03.27"]
[EventType "team-tourn"]
[EventCountry "NET"]
[SourceTitle "playchess.com"]
[Source "ChessBase"]
[SourceQuality "1"]
[TimeControl "900+5"]

1. e4 {[%emt 0:00:00]} c5 {[%emt 0:00:09]} 2. c3 {[%emt 0:00:03]} d5 {[%emt 0:00:16]} 3. exd5 {[%emt 0:00:02]} Qxd5 {[%emt 0:00:02]} 4. d4 {[%emt 0:00:01]} Nf6 {[%emt 0:00:05]} 5. Nf3 {[%emt 0:00:03]} Nc6 {[%emt 0:00:37]} 6. Be3 {[%emt 0:00:22]} Bf5 {[%emt 0:00:56]} 7. Na3 {[%emt 0:00:36]} cxd4 {[%emt 0:00:31]} 8. Nxd4 {[%emt 0:00:24]} Nxd4 {[%emt 0:00:30]} 9. Qxd4 {[%emt 0:00:00]} Qxd4 {[%emt 0:01:34]} 10. Bxd4 {[%emt 0:00:00]} e5 {[%emt 0:01:18]} 11. Bxe5 {[%emt 0:00:07]} Bxa3 {[%emt 0:00:06]} 12. bxa3 {[%emt 0:00:00]} O-O-O {[%emt 0:00:04]} 13. Bd4 {[%emt 0:01:32]} Rhe8+ {[%emt 0:00:45]} 14. Kd2 {[%emt 0:00:01]} Ng4 {[%emt 0:02:16]} 15. f3 {[%emt 0:01:13]} Ne3 {[%emt 0:00:47]} 16. Bb5 {[%emt 0:00:47]} Re5 {[%emt 0:00:06]} 17. g4 {[%emt 0:00:05]} Nc2 {[%emt 0:01:49]} 18. Bd3 {[%emt 0:01:41]} Bxd3 {[%emt 0:00:35]} 19. Bxe5 {[%emt 0:00:08]} Bg6+ {[%emt 0:01:10]} 20. Bd4 {[%emt 0:00:06]} Nxa1 {[%emt 0:00:03]} 21. Rxa1 {[%emt 0:00:00]} f6 {[%emt 0:00:05]} 22. h4 {[%emt 0:00:13]} h5 {[%emt 0:00:16]} 23. Rg1 {[%emt 0:00:04]} Rd7 {[%emt 0:00:06]} 24. Ke3 {[%emt 0:00:03]} a6 {[%emt 0:00:08]} 25. g5 {[%emt 0:00:08]} fxg5 {[%emt 0:00:06]} 26. Rxg5 {[%emt 0:00:00]} Re7+ {[%emt 0:00:32]} 27. Kf4 {[%emt 0:00:07]} Rf7+ {[%emt 0:00:12]} 28. Kg3 {[%emt 0:00:03]} Bc2 {[%emt 0:00:20]} 29. Bxg7 {[%emt 0:00:16]} Bd1 {[%emt 0:00:02]} 30. f4 {[%emt 0:00:02]} Kd7 {[%emt 0:00:30]} 31. f5 {[%emt 0:00:49]} Bg4 {[%emt 0:00:35]} 32. Kf4 {[%emt 0:00:17]} Bd1 {[%emt 0:00:07]} 33. Bd4 {[%emt 0:00:08]} Kd6 {[%emt 0:00:09]} 34. f6 {[%emt 0:00:04]} Ke6 {[%emt 0:00:19]} 35. Rg1 {[%emt 0:00:08]} Bg4 {[%emt 0:00:02]} 36. Re1+ {[%emt 0:00:00]} Kd6 {[%emt 0:00:06]} 37. Kg5 {[%emt 0:00:01]} Rf8 {[%emt 0:00:13]} 38. Kg6 {[%emt 0:00:04]} Be6 {[%emt 0:00:10]} 39. Bc5+ {[%emt 0:00:04]} Kxc5 {[%emt 0:00:09]} 40. Rxe6 {[%emt 0:00:02]} Kd5 {[%emt 0:00:02]} 41. Re3 {[%emt 0:00:03]} 1-0

[Event "European Online Club-ch-D 2021"]
[Site "Online"]
[Date "2021.03.27"]
[Round "9.15"]
[White "Hoffmann, Hendrik"]
[Black "Medvegy, Zoltan"]
[Result "0-1"]
[ECO "B15"]
[WhiteElo "2242"]
[BlackElo "2527"]
[Annotator "ChessBase"]
[PlyCount "60"]
[EventDate "2021.03.27"]
[EventType "team-tourn"]
[EventCountry "NET"]
[SourceTitle "playchess.com"]
[Source "ChessBase"]
[SourceQuality "1"]
[TimeControl "900+5"]

1. e4 {[%emt 0:00:00]} c6 {[%emt 0:00:03]} 2. d4 {[%emt 0:00:05]} d5 {[%emt 0:00:01]} 3. Nc3 {[%emt 0:00:02]} g6 {[%emt 0:00:04]} 4. h3 {[%emt 0:00:05]} Bg7 {[%emt 0:00:04]} 5. Nf3 {[%emt 0:00:03]} Nf6 {[%emt 0:00:02]} 6. e5 {[%emt 0:00:09]} Ne4 {[%emt 0:00:02]} 7. Bd3 {[%emt 0:00:08]} Nxc3 {[%emt 0:00:03]} 8. bxc3 {[%emt 0:00:01]} c5 {[%emt 0:00:04]} 9. Bb5+ {[%emt 0:00:39]} Bd7 {[%emt 0:01:33]} 10. Bxd7+ {[%emt 0:00:20]} Qxd7 {[%emt 0:00:04]} 11. O-O {[%emt 0:00:03]} Nc6 {[%emt 0:01:49]} 12. Re1 {[%emt 0:00:11]} cxd4 {[%emt 0:02:00]} 13. cxd4 {[%emt 0:00:06]} O-O {[%emt 0:00:02]} 14. Bg5 {[%emt 0:00:47]} Rac8 {[%emt 0:01:06]} 15. Qd2 {[%emt 0:00:26]} Nd8 {[%emt 0:00:22]} 16. Rac1 {[%emt 0:00:19]} Ne6 {[%emt 0:00:11]} 17. Bh6 {[%emt 0:00:05]} Rc4 {[%emt 0:00:15]} 18. h4 {[%emt 0:00:25]} Nxd4 {[%emt 0:00:33]} 19. Nxd4 {[%emt 0:00:31]} Bxh6 {[%emt 0:00:04]} 20. Qxh6 {[%emt 0:00:10]} Rxd4 {[%emt 0:00:03]} 21. Rcd1 {[%emt 0:00:21]} Rxd1 {[%emt 0:04:02]} 22. Rxd1 {[%emt 0:00:04]} Rc8 {[%emt 0:00:06]} 23. h5 {[%emt 0:00:14]} Rxc2 {[%emt 0:01:11]} 24. Rd3 {[%emt 0:01:10]} Qf5 {[%emt 0:00:45]} 25. Rf3 {[%emt 0:00:37]} Qxh5 {[%emt 0:00:43]} 26. Qf4 {[%emt 0:00:21]} Qf5 {[%emt 0:00:13]} 27. Qe3 {[%emt 0:00:02]} Qe4 {[%emt 0:00:10]} 28. Qxa7 {[%emt 0:00:09]} Rc1+ {[%emt 0:00:05]} 29. Kh2 {[%emt 0:00:03]} Qxe5+ {[%emt 0:00:10]} 30. g3 {[%emt 0:01:14]} Qh5+ {[%emt 0:00:05]} 0-1

[Event "European Online Club-ch-D 2021"]
[Site "Online"]
[Date "2021.03.27"]
[Round "9.16"]
[White "Guliyev, Namig"]
[Black "Kelmendi, Bajrush"]
[Result "1-0"]
[ECO "B06"]
[WhiteElo "2538"]
[BlackElo "1951"]
[Annotator "ChessBase"]
[PlyCount "55"]
[EventDate "2021.03.27"]
[EventType "team-tourn"]
[EventCountry "NET"]
[SourceTitle "playchess.com"]
[Source "ChessBase"]
[SourceQuality "1"]
[TimeControl "900+5"]

1. e4 {[%emt 0:00:00]} g6 {[%emt 0:00:04]} 2. d4 {[%emt 0:00:04]} Bg7 {[%emt 0:00:02]} 3. Nc3 {[%emt 0:00:03]} b6 {[%emt 0:00:03]} 4. Be3 {[%emt 0:00:02]} e6 {[%emt 0:00:01]} 5. Qd2 {[%emt 0:00:01]} d6 {[%emt 0:00:02]} 6. h4 {[%emt 0:00:05]} h6 {[%emt 0:00:01]} 7. g4 {[%emt 0:00:14]} Bb7 {[%emt 0:00:05]} 8. O-O-O {[%emt 0:00:10]} Ne7 {[%emt 0:00:05]} 9. f4 {[%emt 0:00:20]} f5 {[%emt 0:00:08]} 10. gxf5 {[%emt 0:00:33]} gxf5 {[%emt 0:00:03]} 11. Bh3 {[%emt 0:00:04]} a6 {[%emt 0:00:13]} 12. d5 {[%emt 0:00:10]} exd5 {[%emt 0:00:22]} 13. exd5 {[%emt 0:00:13]} Nd7 {[%emt 0:00:19]} 14. Bd4 {[%emt 0:00:03]} Nf6 {[%emt 0:00:05]} 15. Nf3 {[%emt 0:00:19]} Qd7 {[%emt 0:00:03]} 16. Rhg1 {[%emt 0:00:02]} Rg8 {[%emt 0:00:47]} 17. Rxg7 {[%emt 0:00:05]} Rxg7 {[%emt 0:00:01]} 18. Bxf6 {[%emt 0:00:01]} Rf7 {[%emt 0:00:02]} 19. Bxe7 {[%emt 0:00:13]} Rxe7 {[%emt 0:00:04]} 20. Nd4 {[%emt 0:00:01]} Rf7 {[%emt 0:00:10]} 21. Re1+ {[%emt 0:00:03]} Kf8 {[%emt 0:00:04]} 22. Ne6+ {[%emt 0:00:16]} Kg8 {[%emt 0:00:05]} 23. Qd3 {[%emt 0:00:07]} Qe7 {[%emt 0:00:29]} 24. Bxf5 {[%emt 0:00:24]} Qxh4 {[%emt 0:00:08]} 25. Rg1+ {[%emt 0:00:06]} Kh8 {[%emt 0:00:01]} 26. b3 {[%emt 0:00:30]} Qf6 {[%emt 0:00:10]} 27. Rg6 {[%emt 0:00:26]} Qh4 {[%emt 0:00:22]} 28. Qd4+ {[%emt 0:00:04]} 1-0

[Event "European Online Club-ch-D 2021"]
[Site "Online"]
[Date "2021.03.27"]
[Round "9.17"]
[White "Lopez Del Alamo, Antonio"]
[Black "Howell, David W L"]
[Result "0-1"]
[ECO "C28"]
[WhiteElo "2295"]
[BlackElo "2658"]
[Annotator "ChessBase"]
[PlyCount "56"]
[EventDate "2021.03.27"]
[EventType "team-tourn"]
[EventCountry "NET"]
[SourceTitle "playchess.com"]
[Source "ChessBase"]
[SourceQuality "1"]
[TimeControl "900+5"]

1. e4 {[%emt 0:00:00]} e5 {[%emt 0:00:15]} 2. Bc4 {[%emt 0:00:06]} Nf6 {[%emt 0:00:10]} 3. d3 {[%emt 0:00:04]} Nc6 {[%emt 0:00:06]} 4. Nc3 {[%emt 0:00:16]} Na5 {[%emt 0:00:03]} 5. Nge2 {[%emt 0:00:10]} c6 {[%emt 0:00:39]} 6. a4 {[%emt 0:02:05]} Nxc4 {[%emt 0:00:42]} 7. dxc4 {[%emt 0:00:03]} Be7 {[%emt 0:00:02]} 8. O-O {[%emt 0:01:10]} d6 {[%emt 0:00:04]} 9. b3 {[%emt 0:00:28]} Be6 {[%emt 0:00:25]} 10. Ba3 {[%emt 0:00:17]} O-O {[%emt 0:00:23]} 11. Qd3 {[%emt 0:00:05]} Qc7 {[%emt 0:00:07]} 12. Rad1 {[%emt 0:00:12]} Rad8 {[%emt 0:00:07]} 13. h3 {[%emt 0:01:05]} Ne8 {[%emt 0:05:59]} 14. Ng3 {[%emt 0:02:18]} g6 {[%emt 0:00:40]} 15. Bc1 {[%emt 0:00:51]} Ng7 {[%emt 0:00:52]} 16. f4 {[%emt 0:02:47]} f5 {[%emt 0:00:14]} 17. Qe2 {[%emt 0:00:40]} Bf6 {[%emt 0:01:03]} 18. Rd3 {[%emt 0:00:39]} exf4 {[%emt 0:00:26]} 19. Bxf4 {[%emt 0:00:08]} g5 {[%emt 0:00:01]} 20. Bd2 {[%emt 0:00:53]} f4 {[%emt 0:00:03]} 21. Nh5 {[%emt 0:00:14]} Nxh5 {[%emt 0:01:15]} 22. Qxh5 {[%emt 0:00:04]} Bf7 {[%emt 0:00:01]} 23. Qd1 {[%emt 0:00:32]} Bg6 {[%emt 0:00:04]} 24. Be1 {[%emt 0:01:07]} Qg7 {[%emt 0:00:38]} 25. Ne2 {[%emt 0:00:29]} Bxe4 {[%emt 0:01:56]} 26. Nd4 {[%emt 0:00:16]} Bxd3 {[%emt 0:00:26]} 27. Ne6 {[%emt 0:00:03]} Qe7 {[%emt 0:00:03]} 28. Nxf8 {[%emt 0:00:11]} Bxf1 {[%emt 0:00:02]} 0-1

[Event "European Online Club-ch-D 2021"]
[Site "Online"]
[Date "2021.03.27"]
[Round "9.18"]
[White "McShane, Luke J"]
[Black "Sanchez Gonzalez, Sergio"]
[Result "1-0"]
[ECO "B81"]
[WhiteElo "2674"]
[BlackElo "2281"]
[Annotator "ChessBase"]
[PlyCount "67"]
[EventDate "2021.03.27"]
[EventType "team-tourn"]
[EventCountry "NET"]
[SourceTitle "playchess.com"]
[Source "ChessBase"]
[SourceQuality "1"]
[TimeControl "900+5"]

1. e4 {[%emt 0:00:00]} c5 {[%emt 0:00:04]} 2. Nf3 {[%emt 0:00:05]} d6 {[%emt 0:00:03]} 3. d4 {[%emt 0:00:02]} cxd4 {[%emt 0:00:01]} 4. Nxd4 {[%emt 0:00:01]} Nf6 {[%emt 0:00:01]} 5. Nc3 {[%emt 0:00:02]} e6 {[%emt 0:00:01]} 6. g4 {[%emt 0:00:07]} h6 {[%emt 0:00:03]} 7. h4 {[%emt 0:00:24]} Nc6 {[%emt 0:00:03]} 8. g5 {[%emt 0:00:41]} hxg5 {[%emt 0:00:06]} 9. Bxg5 {[%emt 0:00:02]} Qb6 {[%emt 0:00:01]} 10. Nb3 {[%emt 0:00:09]} a6 {[%emt 0:00:02]} 11. Qe2 {[%emt 0:00:46]} Nd4 {[%emt 0:02:51]} 12. Qd3 {[%emt 0:00:05]} Nxb3 {[%emt 0:00:02]} 13. axb3 {[%emt 0:00:03]} Bd7 {[%emt 0:00:04]} 14. f3 {[%emt 0:01:55]} Bc6 {[%emt 0:00:38]} 15. O-O-O {[%emt 0:00:08]} Nd7 {[%emt 0:00:19]} 16. Nd5 {[%emt 0:03:51]} Bxd5 {[%emt 0:00:55]} 17. exd5 {[%emt 0:00:03]} e5 {[%emt 0:00:01]} 18. Bh3 {[%emt 0:00:29]} Nc5 {[%emt 0:02:51]} 19. Qe2 {[%emt 0:01:50]} Be7 {[%emt 0:00:44]} 20. Kb1 {[%emt 0:00:55]} Qd8 {[%emt 0:01:36]} 21. Be3 {[%emt 0:00:35]} Nd7 {[%emt 0:00:28]} 22. h5 {[%emt 0:00:30]} Nf6 {[%emt 0:00:02]} 23. f4 {[%emt 0:02:10]} Rxh5 {[%emt 0:00:20]} 24. Bg4 {[%emt 0:00:45]} Rxh1 {[%emt 0:01:30]} 25. Rxh1 {[%emt 0:00:03]} Qa5 {[%emt 0:01:33]} 26. Rh8+ {[%emt 0:00:15]} Bf8 {[%emt 0:00:02]} 27. fxe5 {[%emt 0:00:14]} Nxg4 {[%emt 0:00:02]} 28. Qxg4 {[%emt 0:00:20]} Qe1+ {[%emt 0:00:02]} 29. Bc1 {[%emt 0:00:17]} Qxe5 {[%emt 0:00:02]} 30. Rh5 {[%emt 0:00:25]} Qe7 {[%emt 0:00:30]} 31. Rh3 {[%emt 0:00:10]} Qd7 {[%emt 0:00:29]} 32. Qe2+ {[%emt 0:00:03]} Kd8 {[%emt 0:00:07]} 33. Rh8 {[%emt 0:00:01]} Kc7 {[%emt 0:00:08]} 34. Qc4+ {[%emt 0:00:02]} 1-0

[Event "European Online Club-ch-D 2021"]
[Site "Online"]
[Date "2021.03.27"]
[Round "9.19"]
[White "Gongora Montes, Benjamin"]
[Black "Jones, Gawain C B"]
[Result "0-1"]
[ECO "A48"]
[WhiteElo "2198"]
[BlackElo "2670"]
[Annotator "ChessBase"]
[PlyCount "54"]
[EventDate "2021.03.27"]
[EventType "team-tourn"]
[EventCountry "NET"]
[SourceTitle "playchess.com"]
[Source "ChessBase"]
[SourceQuality "1"]
[TimeControl "900+5"]

1. d4 {[%emt 0:00:00]} Nf6 {[%emt 0:00:03]} 2. Nf3 {[%emt 0:00:04]} g6 {[%emt 0:00:01]} 3. Bg5 {[%emt 0:00:06]} Bg7 {[%emt 0:00:02]} 4. Nbd2 {[%emt 0:00:04]} O-O {[%emt 0:00:01]} 5. c3 {[%emt 0:00:03]} d6 {[%emt 0:00:15]} 6. e4 {[%emt 0:00:04]} h6 {[%emt 0:00:04]} 7. Bh4 {[%emt 0:00:04]} c5 {[%emt 0:00:02]} 8. dxc5 {[%emt 0:00:03]} dxc5 {[%emt 0:00:01]} 9. Bc4 {[%emt 0:00:02]} Nc6 {[%emt 0:00:34]} 10. O-O {[%emt 0:00:06]} Nh5 {[%emt 0:00:11]} 11. Re1 {[%emt 0:00:06]} Qc7 {[%emt 0:00:10]} 12. Nf1 {[%emt 0:00:12]} Rd8 {[%emt 0:01:14]} 13. Qc2 {[%emt 0:00:12]} g5 {[%emt 0:01:44]} 14. Bg3 {[%emt 0:00:21]} Nxg3 {[%emt 0:00:03]} 15. Nxg3 {[%emt 0:00:07]} Bg4 {[%emt 0:00:08]} 16. Nd2 {[%emt 0:00:14]} Ne5 {[%emt 0:00:57]} 17. Bf1 {[%emt 0:00:06]} c4 {[%emt 0:00:50]} 18. f3 {[%emt 0:00:39]} Nd3 {[%emt 0:00:33]} 19. Bxd3 {[%emt 0:00:10]} cxd3 {[%emt 0:00:01]} 20. Qa4 {[%emt 0:00:12]} Qb6+ {[%emt 0:01:07]} 21. Kh1 {[%emt 0:00:08]} Qxb2 {[%emt 0:00:16]} 22. Nc4 {[%emt 0:00:26]} Qxc3 {[%emt 0:02:20]} 23. fxg4 {[%emt 0:00:05]} Rd4 {[%emt 0:00:22]} 24. Nf5 {[%emt 0:01:53]} Rxc4 {[%emt 0:00:28]} 25. Nxe7+ {[%emt 0:00:26]} Kh8 {[%emt 0:00:25]} 26. Qb5 {[%emt 0:00:56]} d2 {[%emt 0:00:07]} 27. Rf1 {[%emt 0:00:34]} Qxa1 {[%emt 0:00:08]} 0-1

[Event "European Online Club-ch-D 2021"]
[Site "Online"]
[Date "2021.03.27"]
[Round "9.20"]
[White "Cheparinov, Ivan"]
[Black "Estevez Sacristan, Deva"]
[Result "1-0"]
[ECO "A88"]
[WhiteElo "2667"]
[BlackElo "1932"]
[Annotator "ChessBase"]
[PlyCount "69"]
[EventDate "2021.03.27"]
[EventType "team-tourn"]
[EventCountry "NET"]
[SourceTitle "playchess.com"]
[Source "ChessBase"]
[SourceQuality "1"]
[TimeControl "900+5"]

1. d4 {[%emt 0:00:00]} f5 {[%emt 0:00:03]} 2. g3 {[%emt 0:00:05]} Nf6 {[%emt 0:00:03]} 3. Bg2 {[%emt 0:00:01]} g6 {[%emt 0:00:02]} 4. Nf3 {[%emt 0:00:01]} Bg7 {[%emt 0:00:01]} 5. c4 {[%emt 0:00:01]} O-O {[%emt 0:00:01]} 6. O-O {[%emt 0:00:01]} d6 {[%emt 0:00:01]} 7. Nc3 {[%emt 0:00:01]} c6 {[%emt 0:00:02]} 8. d5 {[%emt 0:00:02]} e5 {[%emt 0:00:10]} 9. dxe6 {[%emt 0:00:02]} Bxe6 {[%emt 0:00:02]} 10. b3 {[%emt 0:00:01]} Ne4 {[%emt 0:00:50]} 11. Nxe4 {[%emt 0:00:03]} Bxa1 {[%emt 0:01:59]} 12. Nxd6 {[%emt 0:00:03]} Bg7 {[%emt 0:00:17]} 13. Ng5 {[%emt 0:00:14]} Qd7 {[%emt 0:01:13]} 14. Nxe6 {[%emt 0:00:10]} Qxe6 {[%emt 0:00:08]} 15. Nxb7 {[%emt 0:00:01]} Na6 {[%emt 0:00:25]} 16. Ba3 {[%emt 0:00:40]} Rfc8 {[%emt 0:03:09]} 17. e4 {[%emt 0:01:33]} fxe4 {[%emt 0:00:31]} 18. Re1 {[%emt 0:00:04]} Rab8 {[%emt 0:00:24]} 19. Bxe4 {[%emt 0:00:40]} Qf6 {[%emt 0:01:56]} 20. Nd6 {[%emt 0:00:05]} Rf8 {[%emt 0:00:12]} 21. Re2 {[%emt 0:00:01]} c5 {[%emt 0:00:16]} 22. Bb2 {[%emt 0:00:14]} Qd8 {[%emt 0:00:25]} 23. Qd5+ {[%emt 0:02:11]} Kh8 {[%emt 0:00:08]} 24. Nf7+ {[%emt 0:00:09]} Rxf7 {[%emt 0:00:08]} 25. Qxf7 {[%emt 0:00:01]} Bxb2 {[%emt 0:00:33]} 26. Rxb2 {[%emt 0:00:02]} Qd1+ {[%emt 0:00:04]} 27. Kg2 {[%emt 0:00:03]} Qd4 {[%emt 0:00:05]} 28. Re2 {[%emt 0:00:05]} Nb4 {[%emt 0:01:18]} 29. Bxg6 {[%emt 0:00:19]} Qg7 {[%emt 0:00:39]} 30. Re8+ {[%emt 0:00:23]} Rxe8 {[%emt 0:00:04]} 31. Qxe8+ {[%emt 0:00:01]} Qg8 {[%emt 0:00:06]} 32. Qxg8+ {[%emt 0:00:43]} Kxg8 {[%emt 0:00:04]} 33. Bb1 {[%emt 0:00:02]} Kf7 {[%emt 0:00:14]} 34. Kf3 {[%emt 0:00:09]} Kf6 {[%emt 0:00:07]} 35. Bxh7 {[%emt 0:00:14]} 1-0